bitfinex-derivatives/quotes_SOLF0:USTF0_20250623
["timestamp","ask_amount","ask_price","bid_price","bid_amount"]
[1750650095863,7.5454,132.49,132.46,7.5469]
[1750650096164,13.50919702,132.49,132.46,7.5469]
[1750650096360,7.5454,132.49,132.46,7.5469]
[1750650097255,37.86,132.5,132.43,4.8008]
[1750650097456,20.22170386,132.49,132.43,2.3174]
[1750650097653,8.86315712,132.48,132.43,2.3174]
[1750650097856,43.80835915,132.47,132.43,2.3174]
[1750650098065,37.84,132.47,132.43,2.3174]
[1750650098759,45.3869,132.47,132.44,7.548]
[1750650099061,37.84,132.47,132.43,2.3174]
[1750650099261,45.3866,132.47,132.44,7.5479]
[1750650100865,7.5472,132.46,132.43,9.866]
[1750650101162,7.5472,132.46,132.43,7.5486]
[1750650102465,187.92226826,132.47,132.39,7.72906826]
[1750650102663,5.38226826,132.45,132.39,7.72906826]
[1750650102867,43.81056453,132.44,132.39,7.72906826]
[1750650103067,37.84,132.44,132.39,7.72906826]
[1750650103370,37.84,132.44,132.4,7.5502]
[1750650104367,45.3887,132.44,132.4,7.5502]
[1750650104771,37.84,132.44,132.4,7.5502]
[1750650105159,37.84,132.44,132.39,9.8977]
[1750650105471,5.95426035,132.43,132.39,7.5509]
[1750650105669,7.5497,132.42,132.38,7.5516]
[1750650106464,12.93136826,132.43,132.39,7.551]
[1750650108364,5.95077099,132.42,132.39,7.551]
[1750650108674,37.84,132.44,132.38,5.38226826]
[1750650108868,37.84,132.44,132.4,5.38226826]
[1750650109971,37.84,132.44,132.41,7.5496]
[1750650110566,5.38892296,132.42,132.35,9.39294371]
[1750650110771,37.86,132.41,132.35,5.38892296]
[1750650111573,37.86,132.41,132.37,7.5519]
[1750650111971,7.5508,132.4,132.37,7.5519]
[1750650112269,7.5508,132.4,132.35,5.38892296]
[1750650112270,5.38892296,132.4,132.36,7.5526]
[1750650113366,12.93972296,132.4,132.36,7.5526]
[1750650114975,12.93972296,132.4,132.37,7.5522]
[1750650115670,5.38892296,132.4,132.35,5.38892296]
[1750650115874,37.86,132.41,132.37,5.38892296]
[1750650116475,37.86,132.41,132.39,7.5508]
[1750650117872,7.5494,132.42,132.39,7.5508]
[1750650119978,45.6094,132.42,132.39,7.5508]
[1750650120178,38.06,132.42,132.35,43.44892296]
[1750650120382,43.44892296,132.42,132.35,43.44892296]
[1750650120868,43.44892296,132.42,132.35,38.06]
[1750650121073,5.3914246,132.37,132.29,47.45294371]
[1750650121271,38.06,132.36,132.3,5.3914246]
[1750650121679,45.6132,132.36,132.32,7.5548]
[1750650122679,38.06,132.36,132.3,5.39323343]
[1750650123183,45.6133,132.36,132.32,7.5547]
[1750650124183,7.5537,132.35,132.32,7.5547]
[1750650124984,45.6131,132.36,132.32,7.5547]
[1750650125284,38.06,132.36,132.31,7.5556]
[1750650125486,7.5541,132.34,132.31,7.5556]
[1750650127979,5.39323343,132.35,132.29,38.06]
[1750650128482,7.5543,132.34,132.3,7.5558]
[1750650130587,7.5543,132.34,132.31,7.5556]
[1750650130784,12.94703343,132.35,132.29,5.39323343]
[1750650130980,38.06,132.36,132.29,5.39323343]
[1750650131181,45.6132,132.36,132.32,7.5548]
[1750650131381,7.5532,132.36,132.29,5.39323343]
[1750650131687,38.08,132.36,132.33,7.554]
[1750650132894,45.6329,132.36,132.33,7.554]
[1750650133692,38.08,132.36,132.34,7.5537]
[1750650133989,38.08,132.36,132.31,5.39323343]
[1750650134593,12.94513343,132.38,132.31,5.39323343]
[1750650134892,38.08,132.37,132.32,7.5549]
[1750650135089,7.5534,132.35,132.32,7.5549]
[1750650135686,51.02723343,132.34,132.29,5.39323343]
[1750650135985,43.47323343,132.34,132.29,5.39323343]
[1750650136581,7.5545,132.33,132.3,7.5561]
[1750650137482,51.02733343,132.34,132.3,7.5561]
[1750650139390,7.5546,132.33,132.3,7.5561]
[1750650140494,51.02743343,132.34,132.3,7.5561]
[1750650140994,51.02743343,132.34,132.31,7.5555]
[1750650143201,7.5546,132.33,132.27,3.8382176]
[1750650143497,7.5546,132.33,132.27,9.23145103]
[1750650144300,51.02743343,132.34,132.3,7.5559]
[1750650144597,51.02743343,132.34,132.27,9.23145103]
[1750650144801,51.02743343,132.34,132.3,7.5557]
[1750650144997,51.02743343,132.34,132.27,9.23145103]
[1750650145299,51.02743343,132.34,132.3,7.5557]
[1750650145599,7.5546,132.33,132.3,7.5557]
[1750650145787,7.5546,132.33,132.27,3.8382176]
[1750650145788,43.47323343,132.34,132.29,5.39323343]
[1750650145990,43.47323343,132.34,132.31,7.5553]
[1750650146887,51.02743343,132.34,132.31,7.5553]
[1750650148202,12.94743343,132.34,132.31,7.5553]
[1750650148501,50.94743343,132.34,132.31,7.5553]
[1750650153810,50.94743343,132.34,132.3,7.556]
[1750650154010,7.5546,132.33,132.3,7.556]
[1750650154309,7.5546,132.33,132.29,5.39323343]
[1750650154310,43.39323343,132.34,132.27,9.23145103]
[1750650155198,43.39323343,132.34,132.29,7.5565]
[1750650155812,7.5548,132.33,132.3,7.5561]
[1750650157009,38.0,132.34,132.29,5.39323343]
[1750650157202,38.0,132.36,132.29,5.39323343]
[1750650157608,38.0,132.36,132.33,7.5545]
[1750650158613,38.0,132.36,132.31,5.39323343]
[1750650158811,38.0,132.36,132.32,2.3741]
[1750650159311,38.0,132.36,132.34,7.5536]
[1750650162706,5.39323343,132.38,132.32,2.3741]
[1750650162914,38.0,132.37,132.35,7.5529]
[1750650163415,45.5523,132.37,132.34,7.5538]
[1750650165416,45.5523,132.37,132.35,7.5534]
[1750650165417,38.0,132.37,132.35,7.5534]
[1750650170319,38.0,132.37,132.36,7.5528]
[1750650170519,38.0,132.37,132.32,2.3741]
[1750650170819,12.94473343,132.39,132.33,5.39323343]
[1750650171119,38.0,132.38,132.33,5.39323343]
[1750650172515,12.94473343,132.39,132.35,7.553]
[1750650172719,38.0,132.38,132.35,7.553]
[1750650173414,38.0,132.38,132.34,7.5537]
[1750650174528,7.5523,132.37,132.34,7.5537]
[1750650174821,38.0,132.38,132.34,7.5537]
[1750650175221,45.5519,132.38,132.34,7.5537]
[1750650175624,45.5519,132.38,132.35,7.5533]
[1750650176119,38.0,132.38,132.36,7.5525]
[1750650177023,38.0,132.38,132.37,7.5522]
[1750650179124,38.0,132.38,132.33,5.39323343]
[1750650179625,45.552,132.38,132.33,5.39323343]
[1750650180325,38.0,132.38,132.33,5.39323343]
[1750650180621,5.39323343,132.37,132.32,40.2141]
[1750650180823,5.39323343,132.37,132.32,2.3741]
[1750650182919,12.94573343,132.37,132.34,7.5539]
[1750650185828,7.5525,132.37,132.34,7.5539]
[1750650187425,7.5525,132.37,132.33,7.5543]
[1750650187634,7.5529,132.36,132.33,7.5543]
[1750650188027,7.5525,132.37,132.33,7.5543]
[1750650189734,7.5525,132.37,132.34,7.5539]
[1750650190032,7.5528,132.36,132.3,11.93034371]
[1750650190231,7.5528,132.36,132.31,5.39323343]
[1750650191633,7.5528,132.36,132.33,7.5542]
[1750650192935,7.5525,132.37,132.34,7.5536]
[1750650193236,43.39323343,132.38,132.34,7.5536]
[1750650193631,50.94523343,132.38,132.34,7.5536]
[1750650195333,43.39323343,132.38,132.31,5.39323343]
[1750650195533,9.9241,132.39,132.35,5.39323343]
[1750650195534,37.84,132.39,132.35,5.39323343]
[1750650196438,37.84,132.39,132.37,7.5519]
[1750650197140,37.84,132.39,132.36,7.5525]
[1750650198336,45.3912,132.39,132.36,7.5525]
[1750650198741,45.3912,132.39,132.35,12.94633343]
[1750650199034,7.5517,132.38,132.35,7.5531]
[1750650199641,7.5523,132.37,132.34,7.5537]
[1750650200627,13.50350245,132.38,132.34,7.5537]
[1750650200828,2.88289206,132.37,132.34,7.5537]
[1750650201028,7.5521,132.38,132.35,7.5533]
[1750650202142,7.5521,132.38,132.34,7.5537]
[1750650205741,7.5521,132.38,132.35,7.5531]
[1750650208834,7.5525,132.37,132.34,7.5537]
[1750650209048,43.23323343,132.39,132.31,17.15397714]
[1750650209240,10.43139486,132.38,132.34,7.5537]
[1750650209439,7.552,132.38,132.33,5.39323343]
[1750650209844,7.552,132.38,132.34,7.5535]
[1750650210139,7.552,132.38,132.33,5.39323343]
[1750650211640,37.82,132.37,132.34,7.5535]
[1750650211944,45.3723,132.37,132.34,7.5535]
[1750650214837,37.82,132.37,132.34,7.5535]
[1750650220248,37.82,132.37,132.34,11.00401947]
[1750650221647,41.27051947,132.37,132.34,7.5535]
[1750650221850,41.27109751,132.37,132.33,11.00539751]
[1750650223745,41.27109751,132.37,132.31,2.3678]
[1750650223947,3.45126113,132.32,132.29,12.84420484]
[1750650224147,3.45126113,132.31,132.28,12.84420484]
[1750650224453,3.45126113,132.3,132.27,3.45126113]
[1750650224648,3.45126113,132.3,132.26,8.40456113]
[1750650224958,3.45126113,132.3,132.27,7.5576]
[1750650225146,3.45126113,132.3,132.27,11.00886113]
[1750650225846,41.27126113,132.29,132.24,2.4504]
[1750650226049,41.27126113,132.29,132.25,3.45126113]
[1750650226264,41.27126113,132.29,132.23,5.39895716]
[1750650226265,37.82,132.29,132.23,5.39895716]
[1750650226648,45.377,132.29,132.25,7.559]
[1750650226844,37.82,132.29,132.25,5.39895716]
[1750650227449,37.82,132.29,132.26,7.5581]
[1750650227845,37.82,132.29,132.25,5.39895716]
[1750650228455,37.82,132.29,132.26,7.5581]
[1750650229348,37.82,132.29,132.25,5.39895716]
[1750650230252,37.82,132.29,132.28,7.5574]
[1750650231254,7.5553,132.32,132.28,7.5574]
[1750650231555,45.3953,132.32,132.29,7.5567]
[1750650232155,37.84,132.32,132.27,5.39895716]
[1750650233058,45.3951,132.32,132.29,7.5564]
[1750650233356,37.84,132.32,132.29,7.5564]
[1750650233558,37.84,132.32,132.27,5.39895716]
[1750650235050,37.84,132.32,132.29,7.5564]
[1750650235349,37.84,132.32,132.27,5.39895716]
[1750650236351,37.84,132.32,132.29,5.39895716]
[1750650236555,37.84,132.32,132.3,7.5562]
[1750650236856,37.84,132.32,132.29,5.39895716]
[1750650237252,37.84,132.32,132.3,7.5558]
[1750650240658,37.84,132.32,132.31,7.5557]
[1750650240854,37.82,132.35,132.31,5.39895716]
[1750650241049,37.82,132.38,132.33,5.39895716]
[1750650241251,45.372,132.38,132.35,7.553]
[1750650242163,37.82,132.38,132.32,5.39895716]
[1750650243761,7.5531,132.36,132.33,7.5544]
[1750650246757,7.5524,132.37,132.32,5.39895716]
[1750650247665,7.5524,132.37,132.33,7.5542]
[1750650249261,7.5524,132.37,132.34,7.5539]
[1750650254869,690.52,132.41,132.36,5.39895716]
[1750650255371,690.52,132.41,132.37,5.39895716]
[1750650255976,690.52,132.41,132.38,7.5515]
[1750650256167,698.07,132.41,132.38,7.5515]
[1750650256865,690.52,132.41,132.38,7.5515]
[1750650259179,835.32,132.41,132.38,7.5515]
[1750650259780,190.1501,132.41,132.38,7.5515]
[1750650260283,37.8,132.41,132.39,7.5507]
[1750650260477,182.58,132.41,132.39,7.5507]
[1750650261278,37.8,132.41,132.39,7.5507]
[1750650267980,37.8,132.41,132.4,7.5505]
[1750650271274,45.3084,132.44,132.41,7.5497]
[1750650273891,190.0484,132.44,132.41,7.5497]
[1750650274286,7.02148963,132.49,132.41,5.39895716]
[1750650274487,37.76,132.48,132.43,5.39895716]
[1750650274689,37.76,132.48,132.42,5.39895716]
[1750650274890,43.15895716,132.48,132.42,5.39895716]
[1750650275099,5.39895716,132.46,132.4,7.85095716]
[1750650275395,37.76,132.45,132.4,7.85095716]
[1750650275590,190.048,132.45,132.41,7.5496]
[1750650280594,190.048,132.45,132.4,7.5504]
[1750650280595,182.5,132.45,132.4,7.5504]
[1750650280796,187.1953,132.45,132.4,7.5504]
[1750650281198,187.1953,132.45,132.39,7.551]
[1750650281597,5.9956949,132.44,132.39,7.551]
[1750650281898,7.5492,132.43,132.39,7.551]
[1750650282094,37.76,132.42,132.39,7.551]
[1750650282295,37.76,132.42,132.39,10.99893574]
[1750650282800,3.44793574,132.41,132.36,2.3784]
[1750650282993,3.44793574,132.41,132.38,3.44793574]
[1750650283193,10.99843574,132.41,132.38,3.44793574]
[1750650283594,3.44793574,132.41,132.38,3.44793574]
[1750650284194,43.14937612,132.42,132.37,7.5519]
[1750650284597,7.5502,132.41,132.37,7.5519]
[1750650285298,7.5506,132.4,132.37,7.5519]
[1750650286395,7.5506,132.4,132.36,7.5526]
[1750650286799,37.76,132.39,132.33,2.328]
[1750650287006,37.76,132.39,132.32,5.38937612]
[1750650287202,5.38937612,132.38,132.32,5.38937612]
[1750650287807,7.5523,132.37,132.34,7.5536]
[1750650288105,37.76,132.36,132.32,5.38937612]
[1750650288700,37.76,132.36,132.34,5.38937612]
[1750650289110,37.76,132.36,132.34,12.94297612]
[1750650289301,37.76,132.36,132.34,7.5536]
[1750650300618,37.76,132.36,132.35,7.5534]
[1750650302313,45.3114,132.39,132.36,7.5526]
[1750650303924,7.5517,132.38,132.35,7.5532]
[1750650304519,37.76,132.39,132.34,5.38937612]
[1750650304922,45.3114,132.39,132.36,7.5528]
[1750650305123,37.76,132.39,132.34,5.38937612]
[1750650305617,7.5518,132.38,132.35,7.553]
[1750650306420,7.5518,132.38,132.35,11.00320125]
[1750650306817,48.76150125,132.39,132.36,7.5527]
[1750650307021,48.76150125,132.39,132.36,11.00290125]
[1750650307622,48.76150125,132.39,132.36,7.5527]
[1750650307824,48.76150125,132.39,132.36,11.00290125]
[1750650309424,37.76,132.39,132.37,3.45020125]
[1750650309622,37.76,132.39,132.37,11.00220125]
[1750650312521,37.76,132.39,132.38,7.5517]
[1750650317028,37.76,132.39,132.38,11.00190125]
[1750650318025,37.76,132.42,132.4,7.5503]
[1750650318227,37.76,132.42,132.4,11.00050125]
[1750650319333,37.76,132.42,132.4,7.5503]
[1750650319533,37.76,132.42,132.4,11.00050125]
[1750650320727,45.3094,132.42,132.4,11.00050125]
[1750650321335,37.76,132.42,132.4,11.00050125]
[1750650322634,37.76,132.42,132.4,7.5503]
[1750650322836,37.76,132.42,132.4,11.00050125]
[1750650324341,45.3095,132.42,132.4,3.45020125]
[1750650327446,3.45020125,132.41,132.34,2.3598]
[1750650327741,3.45020125,132.39,132.36,3.45020125]
[1750650327938,37.72,132.38,132.35,3.45020125]
[1750650328342,41.17020125,132.38,132.35,3.45020125]
[1750650328845,37.72,132.38,132.35,11.00350125]
[1750650329940,37.72,132.38,132.36,3.45020125]
[1750650330444,37.72,132.38,132.35,7.5533]
[1750650331045,45.2718,132.38,132.35,7.5533]
[1750650332346,37.72,132.38,132.36,7.5528]
[1750650333037,45.272,132.38,132.35,7.5533]
[1750650338551,45.272,132.38,132.34,9.9135]
[1750650338749,7.5526,132.37,132.34,7.5537]
[1750650339751,45.272,132.38,132.34,7.5537]
[1750650340550,7.5523,132.37,132.34,7.5537]
[1750650342552,7.5523,132.37,132.33,12.94478]
[1750650342747,7.5523,132.37,132.33,5.39048]
[1750650343554,7.5523,132.37,132.34,7.5539]
[1750650349854,45.2719,132.38,132.35,7.5534]
[1750650350155,45.2719,132.38,132.33,5.39048]
[1750650350344,45.2719,132.38,132.35,3.45014529]
[1750650350956,37.72,132.38,132.36,3.45014529]
[1750650351353,45.2717,132.38,132.36,3.45014529]
[1750650351653,37.72,132.38,132.36,3.45014529]
[1750650352561,45.2718,132.38,132.36,3.45014529]
[1750650354358,45.2718,132.38,132.35,7.5531]
[1750650354359,45.2718,132.38,132.35,11.00324529]
[1750650358460,37.72,132.38,132.36,7.5527]
[1750650360061,37.72,132.38,132.36,11.00284529]
[1750650360262,37.72,132.38,132.37,7.5522]
[1750650360756,45.2503,132.41,132.38,7.5513]
[1750650360949,45.2503,132.41,132.38,11.00144529]
[1750650361455,7.5507,132.4,132.37,11.00204529]
[1750650363154,7.5507,132.4,132.38,3.45014529]
[1750650363353,48.70034529,132.41,132.38,3.45014529]
[1750650363561,45.2502,132.41,132.38,11.00154529]
[1750650364763,45.2502,132.41,132.37,7.552]
[1750650364967,13.55393219,132.4,132.37,11.00214529]
[1750650365267,7.5506,132.4,132.37,11.00214529]
[1750650366057,3.45014529,132.38,132.34,3.45014529]
[1750650366264,3.45014529,132.37,132.33,3.45014529]
[1750650366468,7.5525,132.37,132.34,7.5539]
[1750650366868,7.5525,132.37,132.33,3.45014529]
[1750650367070,7.5525,132.37,132.34,3.45014529]
[1750650368768,7.5529,132.36,132.34,3.45014529]
[1750650373071,7.5529,132.36,132.33,7.5543]
[1750650373267,7.5529,132.36,132.33,3.45014529]
[1750650373467,7.5534,132.35,132.33,3.45014529]
[1750650373666,3.45014529,132.36,132.32,11.00474529]
[1750650373967,11.00324529,132.36,132.32,11.00474529]
[1750650374469,11.00324529,132.36,132.33,3.45014529]
[1750650374669,45.2534,132.35,132.32,7.5546]
[1750650374969,45.2534,132.35,132.32,11.00474529]
[1750650378966,45.2534,132.35,132.33,3.45014529]
[1750650382073,37.7,132.35,132.33,11.00444529]
[1750650382372,37.7,132.35,132.34,3.45014529]
[1750650382869,37.7,132.35,132.34,11.00414529]
[1750650383074,37.7,132.38,132.34,3.45014529]
[1750650383275,37.7,132.38,132.36,3.45014529]
[1750650384677,45.252,132.38,132.36,3.45014529]
[1750650387470,45.252,132.38,132.35,11.00314529]
[1750650387670,5.99823808,132.37,132.35,11.00314529]
[1750650387865,45.252,132.38,132.35,11.00314529]
[1750650388876,45.252,132.38,132.34,7.5537]
[1750650389077,45.252,132.38,132.35,3.45014529]
[1750650389781,45.252,132.38,132.35,11.00354529]
[1750650390278,3.45014529,132.36,132.29,14.10048448]
[1750650390472,11.80684792,132.41,132.24,2.424]
[1750650390473,215.83532793,132.35,132.24,2.424]
[1750650390672,3.45444474,132.3,132.24,2.424]
[1750650390869,39.4,132.3,132.27,3.45444474]
[1750650391073,657.4822,132.35,132.29,3.45444474]
[1750650391269,6.00260775,132.34,132.3,3.45444474]
[1750650391573,652.54,132.35,132.32,3.45444474]
[1750650391779,6.0056294,132.34,132.33,3.45444474]
[1750650391967,6.0056294,132.34,132.32,3.45444474]
[1750650392173,6.59711427,132.35,132.29,7.5567]
[1750650392478,15.60856166,132.34,132.3,3.45248362]
[1750650392778,6.00576973,132.33,132.3,3.45248362]
[1750650392977,3.45248362,132.34,132.3,3.45248362]
[1750650393182,6.00478407,132.33,132.3,3.45248362]
[1750650393479,3.45248362,132.34,132.31,3.45248362]
[1750650393880,3.45248362,132.35,132.31,3.45248362]
[1750650394075,12.14974263,132.34,132.31,3.45248362]
[1750650394277,6.00137371,132.33,132.29,5.39475272]
[1750650394476,6.00137371,132.33,132.28,4.8241]
[1750650394477,6.59377016,132.35,132.31,5.39475272]
[1750650394686,12.14522707,132.34,132.31,5.39475272]
[1750650394983,6.0004079,132.33,132.31,5.39475272]
[1750650395183,47.18325272,132.36,132.31,5.39475272]
[1750650395384,18.86477847,132.35,132.31,5.39475272]
[1750650395684,12.20541667,132.34,132.31,5.39475272]
[1750650395880,5.9863777,132.33,132.31,5.39475272]
[1750650396093,7.5536,132.35,132.31,5.39475272]
[1750650396280,12.20428858,132.34,132.31,5.39475272]
[1750650396477,5.98648659,132.33,132.31,5.39475272]
[1750650396681,49.3415,132.36,132.31,12.95035272]
[1750650396985,12.20579491,132.35,132.31,12.95035272]
[1750650397181,5.98687047,132.34,132.31,12.95035272]
[1750650397379,49.3415,132.36,132.31,5.39475272]
[1750650397686,12.20643555,132.35,132.31,5.39475272]
[1750650397878,5.98711299,132.34,132.28,4.8241]
[1750650398076,49.3415,132.36,132.31,12.95025272]
[1750650398285,12.20575667,132.35,132.31,12.95025272]
[1750650398476,5.98690028,132.34,132.31,5.39475272]
[1750650398779,49.3415,132.36,132.31,5.39475272]
[1750650398978,12.20566256,132.35,132.31,5.39475272]
[1750650399175,39.4,132.36,132.33,5.39475272]
[1750650399575,39.4,132.36,132.35,5.39475272]
[1750650400482,6.65772269,132.38,132.35,12.94815272]
[1750650400684,39.4,132.39,132.35,5.39475272]
[1750650400887,18.86702959,132.38,132.35,5.39475272]
[1750650401086,39.4,132.39,132.35,5.39475272]
[1750650401289,12.20843664,132.38,132.35,5.39475272]
[1750650401593,39.4,132.39,132.37,5.39475272]
[1750650401982,39.4,132.39,132.37,12.94655272]
[1750650402485,39.4,132.39,132.37,5.39475272]
[1750650402893,699.4896,132.42,132.37,5.39475272]
[1750650403078,5.98892464,132.41,132.39,5.39475272]
[1750650403283,699.4896,132.42,132.39,5.39475272]
[1750650403480,13.53907346,132.41,132.39,5.39475272]
[1750650403785,6.22056866,132.4,132.39,5.39475272]
[1750650404895,7.55,132.41,132.39,5.39475272]
[1750650405788,699.4896,132.42,132.39,5.39475272]
[1750650405988,6.01524075,132.41,132.39,5.39475272]
[1750650406188,691.94,132.42,132.38,12.94605272]
[1750650406388,6.01522815,132.41,132.38,12.94605272]
[1750650406590,691.94,132.42,132.38,12.94605272]
[1750650406791,6.01526491,132.41,132.38,12.94605272]
[1750650406989,691.94,132.42,132.38,12.94605272]
[1750650407193,6.01526561,132.41,132.38,12.94605272]
[1750650407392,691.94,132.42,132.38,12.94605272]
[1750650407590,6.01532473,132.41,132.38,12.94605272]
[1750650407890,7.5502,132.41,132.38,12.94605272]
[1750650410296,7.5502,132.41,132.38,5.39475272]
[1750650411790,7.5502,132.41,132.38,12.94625272]
[1750650412697,6.26154879,132.4,132.38,12.94625272]
[1750650412897,7.5502,132.41,132.38,12.94625272]
[1750650413197,6.26169117,132.4,132.38,12.94625272]
[1750650413397,7.5502,132.41,132.38,12.94625272]
[1750650413596,6.26164813,132.4,132.38,12.94625272]
[1750650413797,7.5502,132.41,132.38,12.94625272]
[1750650413987,6.25616422,132.4,132.38,12.94625272]
[1750650414186,7.5502,132.41,132.38,12.94625272]
[1750650414391,6.25621491,132.4,132.38,12.94625272]
[1750650414687,7.5502,132.41,132.38,12.94625272]
[1750650415398,6.25540625,132.4,132.38,12.94625272]
[1750650415691,7.5502,132.41,132.38,12.94625272]
[1750650416597,6.25477344,132.4,132.38,12.94625272]
[1750650416900,7.5502,132.41,132.38,12.94625272]
[1750650417196,6.25420668,132.4,132.38,12.94625272]
[1750650417398,7.5502,132.41,132.38,12.94625272]
[1750650417598,6.25434716,132.4,132.38,12.94625272]
[1750650417798,7.5502,132.41,132.38,12.94625272]
[1750650418099,6.2542146,132.4,132.38,12.94625272]
[1750650418400,7.5502,132.41,132.39,3.44825968]
[1750650418600,13.84113099,132.41,132.39,3.44825968]
[1750650418793,7.5502,132.41,132.39,3.44825968]
[1750650420104,7.5508,132.4,132.37,7.552]
[1750650420307,7.5508,132.4,132.38,3.44825968]
[1750650421306,7.5502,132.41,132.38,10.99995968]
[1750650421809,7.5502,132.41,132.39,3.44825968]
[1750650422706,7.5505,132.4,132.39,3.44825968]
[1750650424208,7.5503,132.41,132.39,3.44825968]
[1750650425709,6.30616758,132.4,132.39,3.44825968]
[1750650426008,7.5503,132.41,132.39,3.44825968]
[1750650426409,6.30587079,132.4,132.39,3.44825968]
[1750650427204,7.5503,132.41,132.39,3.44825968]
[1750650427707,6.3057671,132.4,132.39,3.44825968]
[1750650428004,46.9497,132.42,132.39,10.99935968]
[1750650428204,46.9497,132.42,132.4,3.44825968]
[1750650437323,46.9497,132.42,132.39,7.5511]
[1750650437618,46.9497,132.42,132.4,3.44825968]
[1750650437821,39.4,132.42,132.41,3.44825968]
[1750650440418,39.4,132.42,132.39,3.44825968]
[1750650440720,158.19862654,132.41,132.38,3.44825968]
[1750650440915,12.57862654,132.4,132.38,3.44825968]
[1750650441123,145.62,132.41,132.38,3.44825968]
[1750650441321,12.58527992,132.4,132.38,3.44825968]
[1750650441523,145.62,132.41,132.38,3.44825968]
[1750650441717,20.14059955,132.4,132.38,3.44825968]
[1750650442016,7.5508,132.4,132.38,3.44825968]
[1750650442518,6.27251551,132.39,132.38,3.44825968]
[1750650443411,12.60091326,132.39,132.38,3.44825968]
[1750650443820,12.60091326,132.39,132.35,2.4272]
[1750650443821,58.16499541,132.39,132.35,3.44825968]
[1750650444025,25.40550085,132.38,132.35,3.44825968]
[1750650444220,12.60091326,132.37,132.35,3.44825968]
[1750650444425,6.27251551,132.36,132.35,3.44825968]
[1750650444627,12.59998995,132.36,132.35,3.44825968]
[1750650445932,6.27251551,132.36,132.35,3.44825968]
[1750650446231,6.27251551,132.36,132.34,7.5537]
[1750650446433,39.16,132.39,132.33,7.5542]
[1750650446729,21.75866693,132.38,132.33,5.39122053]
[1750650446922,12.40178717,132.37,132.33,5.39122053]
[1750650447123,6.25918052,132.36,132.34,7.5537]
[1750650447327,7.5526,132.37,132.34,7.5537]
[1750650447527,6.25942616,132.36,132.34,7.5537]
[1750650447727,6.25942616,132.36,132.31,2.4451]
[1750650447728,39.16,132.39,132.35,5.39122053]
[1750650447928,12.40018914,132.38,132.35,5.39122053]
[1750650448224,39.16,132.39,132.35,5.39122053]
[1750650448427,12.40186349,132.38,132.35,5.39122053]
[1750650448629,39.16,132.39,132.35,5.39122053]
[1750650448826,6.26013208,132.38,132.35,5.39122053]
[1750650449025,39.16,132.39,132.35,5.39122053]
[1750650449230,6.24149753,132.38,132.35,5.39122053]
[1750650449531,39.16,132.39,132.36,7.5527]
[1750650449731,6.24146558,132.38,132.36,7.5527]
[1750650449932,46.7116,132.39,132.36,7.5527]
[1750650450137,6.24097847,132.38,132.36,7.5527]
[1750650450338,46.7116,132.39,132.36,7.5527]
[1750650450533,12.38280634,132.38,132.36,7.5527]
[1750650450732,46.7116,132.39,132.36,7.5527]
[1750650450938,12.3827602,132.38,132.36,7.5527]
[1750650451135,46.7116,132.39,132.36,7.5527]
[1750650451340,6.23994866,132.38,132.36,7.5527]
[1750650451534,46.7116,132.39,132.36,7.5527]
[1750650451732,6.2393007,132.38,132.36,7.5527]
[1750650451932,46.7116,132.39,132.36,7.5527]
[1750650452137,6.23925708,132.38,132.36,7.5527]
[1750650452338,46.7116,132.39,132.36,7.5527]
[1750650452637,6.23933399,132.38,132.36,7.5527]
[1750650452841,46.7116,132.39,132.36,7.5527]
[1750650453042,6.23927488,132.38,132.36,7.5527]
[1750650453237,46.7116,132.39,132.36,7.5527]
[1750650453536,6.23964841,132.38,132.36,7.5527]
[1750650453737,46.7116,132.39,132.36,7.5527]
[1750650453938,6.23955792,132.38,132.36,7.5527]
[1750650454138,39.16,132.39,132.37,7.5523]
[1750650454340,39.16,132.39,132.35,5.39122053]
[1750650454541,6.23956436,132.38,132.35,5.39122053]